[Event "Titled Tuesday Blitz March 15 Late 2022"]
[White "Petrova, Irina"]
[Black "Burke, Paul"]
[WhiteFideId "14124122"]
[BlackFideId "2605767"]
[WhiteElo "1993"]
[BlackElo "1890"]
[Result "1-0"]
[Round "04"]
[TimeControl "180+1"]
[Date "2022.03.16"]
[WhiteClock "0:00:28"]
[BlackClock "0:00:41"]

1. e4 {[%clk 0:03:00]}  e5 {[%clk 0:02:59]} 2. Nf3 {[%clk 0:03:00]}  Nc6 {[%clk 0:02:59]} 3. Bb5 {[%clk 0:03:00]}  f5 {[%clk 0:02:59]} 4. d3 {[%clk 0:02:56]}  Nf6 {[%clk 0:02:58]} 5. Nc3 {[%clk 0:02:53]}  Be7 {[%clk 0:02:58]} 6. Bc4 {[%clk 0:02:38]}  d6 {[%clk 0:02:55]} 7. Ng5 {[%clk 0:02:29]}  Rf8 {[%clk 0:02:54]} 8. Nxh7 {[%clk 0:02:19]}  Nxh7 {[%clk 0:02:35]} 9. Qh5+ {[%clk 0:02:19]}  Kd7 {[%clk 0:02:33]} 10. Qxh7 {[%clk 0:02:18]}  Na5 {[%clk 0:02:19]} 11. Bd5 {[%clk 0:02:08]}  c6 {[%clk 0:02:18]} 12. Bb3 {[%clk 0:01:51]}  Nxb3 {[%clk 0:02:18]} 13. axb3 {[%clk 0:01:52]}  Bf6 {[%clk 0:02:17]} 14. Qxf5+ {[%clk 0:01:49]}  Kc7 {[%clk 0:02:17]} 15. Qg6 {[%clk 0:01:48]}  a6 {[%clk 0:02:11]} 16. Be3 {[%clk 0:01:48]}  b6 {[%clk 0:02:08]} 17. Na4 {[%clk 0:01:45]}  c5 {[%clk 0:02:05]} 18. Nc3 {[%clk 0:01:43]}  Bb7 {[%clk 0:02:00]} 19. Nd5+ {[%clk 0:01:39]}  Bxd5 {[%clk 0:01:59]} 20. exd5 {[%clk 0:01:40]}  Kb7 {[%clk 0:01:58]} 21. h4 {[%clk 0:01:36]}  Qc7 {[%clk 0:01:43]} 22. h5 {[%clk 0:01:33]}  e4 {[%clk 0:01:41]} 23. O-O-O {[%clk 0:01:11]}  exd3 {[%clk 0:01:39]} 24. Qxd3 {[%clk 0:01:11]}  b5 {[%clk 0:01:32]} 25. h6 {[%clk 0:01:06]}  gxh6 {[%clk 0:01:25]} 26. Rxh6 {[%clk 0:01:06]}  Rf7 {[%clk 0:01:23]} 27. Rdh1 {[%clk 0:01:01]}  Qa5 {[%clk 0:01:21]} 28. Kb1 {[%clk 0:00:54]}  b4 {[%clk 0:01:13]} 29. Rh7 {[%clk 0:00:49]}  Rf8 {[%clk 0:01:11]} 30. Rxf7+ {[%clk 0:00:48]}  Rxf7 {[%clk 0:01:10]} 31. Rh7 {[%clk 0:00:48]}  Qc7 {[%clk 0:01:05]} 32. Rxf7 {[%clk 0:00:47]}  Qxf7 {[%clk 0:01:05]} 33. Qf5 {[%clk 0:00:47]}  Qg7 {[%clk 0:01:02]} 34. Qe6 {[%clk 0:00:38]}  Bxb2 {[%clk 0:01:00]} 35. Qxd6 {[%clk 0:00:34]}  Ba3 {[%clk 0:00:54]} 36. Qc6+ {[%clk 0:00:33]}  Kb8 {[%clk 0:00:47]} 37. Bf4+ {[%clk 0:00:32]}  Ka7 {[%clk 0:00:44]} 38. Qxc5+ {[%clk 0:00:32]}  Kb7 {[%clk 0:00:44]} 39. Qc6+ {[%clk 0:00:30]}  Ka7 {[%clk 0:00:43]} 40. Qc7+ {[%clk 0:00:28]}  Qxc7 {[%clk 0:00:42]} 41. Bxc7 {[%clk 0:00:29]}  Kb7 {[%clk 0:00:41]} 42. d6 {[%clk 0:00:28]} 1-0


[Site "https://www.chess.com"]

[Event "Titled Tuesday Blitz March 15 Late 2022"]
[White "Pichot, Alan"]
[Black "Suder, Jakub"]
[WhiteFideId "110973"]
[BlackFideId "1195310"]
[WhiteElo "2579"]
[BlackElo "2058"]
[Result "1-0"]
[Round "04"]
[TimeControl "180+1"]
[Date "2022.03.15"]
[WhiteClock "0:00:45"]
[BlackClock "0:00:19"]

1. d4 {[%clk 0:02:44]}  d5 {[%clk 0:02:59]} 2. Nf3 {[%clk 0:02:43]}  e6 {[%clk 0:02:58]} 3. c4 {[%clk 0:02:42]}  a6 {[%clk 0:02:58]} 4. cxd5 {[%clk 0:02:39]}  exd5 {[%clk 0:02:59]} 5. Nc3 {[%clk 0:02:38]}  Nf6 {[%clk 0:02:59]} 6. Bg5 {[%clk 0:02:37]}  Be6 {[%clk 0:02:59]} 7. e3 {[%clk 0:02:35]}  Nbd7 {[%clk 0:02:58]} 8. Bd3 {[%clk 0:02:35]}  Bd6 {[%clk 0:02:59]} 9. O-O {[%clk 0:02:33]}  c6 {[%clk 0:02:59]} 10. Qc2 {[%clk 0:02:32]}  Qb8 {[%clk 0:02:59]} 11. Bh4 {[%clk 0:02:31]}  O-O {[%clk 0:02:58]} 12. Bg3 {[%clk 0:02:30]}  Bg4 {[%clk 0:02:59]} 13. Nd2 {[%clk 0:02:25]}  Re8 {[%clk 0:02:42]} 14. b4 {[%clk 0:02:24]}  Bh5 {[%clk 0:02:38]} 15. a4 {[%clk 0:02:20]}  Bxg3 {[%clk 0:02:34]} 16. hxg3 {[%clk 0:02:20]}  b5 {[%clk 0:02:27]} 17. Nb3 {[%clk 0:02:16]}  Bg6 {[%clk 0:02:22]} 18. Ra2 {[%clk 0:02:07]}  Bxd3 {[%clk 0:02:21]} 19. Qxd3 {[%clk 0:02:07]}  Qd6 {[%clk 0:02:20]} 20. Nc5 {[%clk 0:02:01]}  Nxc5 {[%clk 0:01:46]} 21. dxc5 {[%clk 0:02:02]}  Qe5 {[%clk 0:01:38]} 22. Ne2 {[%clk 0:01:55]}  Ne4 {[%clk 0:01:21]} 23. Rfa1 {[%clk 0:01:38]}  Qf6 {[%clk 0:01:15]} 24. Nd4 {[%clk 0:01:34]}  Rac8 {[%clk 0:01:07]} 25. axb5 {[%clk 0:01:32]}  axb5 {[%clk 0:01:08]} 26. Qc2 {[%clk 0:01:09]}  h5 {[%clk 0:00:49]} 27. Ra7 {[%clk 0:01:01]}  h4 {[%clk 0:00:49]} 28. gxh4 {[%clk 0:01:02]}  Qxh4 {[%clk 0:00:48]} 29. Rb7 {[%clk 0:00:59]}  Re5 {[%clk 0:00:46]} 30. Nf3 {[%clk 0:00:57]}  Qh5 {[%clk 0:00:35]} 31. Nxe5 {[%clk 0:00:57]}  Qxe5 {[%clk 0:00:36]} 32. Raa7 {[%clk 0:00:57]}  Ng5 {[%clk 0:00:36]} 33. Qe2 {[%clk 0:00:53]}  d4 {[%clk 0:00:25]} 34. f4 {[%clk 0:00:50]}  Qe4 {[%clk 0:00:20]} 35. fxg5 {[%clk 0:00:49]}  dxe3 {[%clk 0:00:19]} 36. Rxf7 {[%clk 0:00:46]}  Rd8 {[%clk 0:00:19]} 37. Rxg7+ {[%clk 0:00:45]} 1-0


[Site "https://www.chess.com"]

[Event "Titled Tuesday Blitz March 15 Late 2022"]
[White "Rabineau, Clement"]
[Black "Zomorrodian, Eilia"]
[WhiteFideId "628891"]
[BlackFideId "12551805"]
[WhiteElo "2237"]
[BlackElo "2098"]
[Result "0-1"]
[Round "04"]
[TimeControl "180+1"]
[Date "2022.03.16"]
[WhiteClock "0:00:02"]
[BlackClock "0:00:17"]

1. e4 {[%clk 0:03:00]}  c5 {[%clk 0:02:59]} 2. c3 {[%clk 0:03:01]}  Nf6 {[%clk 0:02:59]} 3. e5 {[%clk 0:03:01]}  Nd5 {[%clk 0:02:59]} 4. Bc4 {[%clk 0:03:01]}  Nb6 {[%clk 0:02:59]} 5. Bb3 {[%clk 0:03:01]}  Nc6 {[%clk 0:02:56]} 6. Nf3 {[%clk 0:03:01]}  d5 {[%clk 0:02:55]} 7. exd6 {[%clk 0:03:00]}  Qxd6 {[%clk 0:02:55]} 8. O-O {[%clk 0:02:59]}  c4 {[%clk 0:02:54]} 9. Bc2 {[%clk 0:03:00]}  g6 {[%clk 0:02:51]} 10. b3 {[%clk 0:02:59]}  Bg7 {[%clk 0:02:46]} 11. Na3 {[%clk 0:02:58]}  cxb3 {[%clk 0:02:42]} 12. axb3 {[%clk 0:02:59]}  O-O {[%clk 0:02:41]} 13. h3 {[%clk 0:02:10]}  e5 {[%clk 0:02:26]} 14. Re1 {[%clk 0:02:06]}  h6 {[%clk 0:02:17]} 15. Nb5 {[%clk 0:01:49]}  Qd8 {[%clk 0:02:13]} 16. Ba3 {[%clk 0:01:48]}  Re8 {[%clk 0:01:59]} 17. Nd6 {[%clk 0:01:47]}  Re6 {[%clk 0:01:55]} 18. Nxc8 {[%clk 0:01:45]}  Rxc8 {[%clk 0:01:50]} 19. d4 {[%clk 0:01:14]}  Nd5 {[%clk 0:01:37]} 20. Bb2 {[%clk 0:00:56]}  Nf4 {[%clk 0:01:13]} 21. dxe5 {[%clk 0:00:36]}  Qxd1 {[%clk 0:01:06]} 22. Rexd1 {[%clk 0:00:23]}  Nxe5 {[%clk 0:01:05]} 23. Nxe5 {[%clk 0:00:23]}  Bxe5 {[%clk 0:01:06]} 24. Rxa7 {[%clk 0:00:20]}  Bxc3 {[%clk 0:01:03]} 25. Bxc3 {[%clk 0:00:16]}  Rxc3 {[%clk 0:01:04]} 26. Bb1 {[%clk 0:00:11]}  Rb6 {[%clk 0:00:50]} 27. Ba2 {[%clk 0:00:10]}  Rc2 {[%clk 0:00:46]} 28. Kh2 {[%clk 0:00:07]}  Rxf2 {[%clk 0:00:45]} 29. Kg3 {[%clk 0:00:08]}  Rxg2+ {[%clk 0:00:32]} 30. Kxf4 {[%clk 0:00:08]}  Rf6+ {[%clk 0:00:29]} 31. Ke3 {[%clk 0:00:07]}  Re6+ {[%clk 0:00:28]} 32. Kf3 {[%clk 0:00:06]}  Rh2 {[%clk 0:00:27]} 33. Kg3 {[%clk 0:00:05]}  Rc2 {[%clk 0:00:25]} 34. b4 {[%clk 0:00:05]}  Re3+ {[%clk 0:00:23]} 35. Kf4 {[%clk 0:00:05]}  Rxh3 {[%clk 0:00:20]} 36. Rd8+ {[%clk 0:00:02]}  Kg7 {[%clk 0:00:20]} 37. Rd7 {[%clk 0:00:03]}  g5+ {[%clk 0:00:19]} 38. Ke4 {[%clk 0:00:03]}  Re2+ {[%clk 0:00:17]} 39. Kd5 {[%clk 0:00:02]}  Rd2+ {[%clk 0:00:17]} 0-1


[Site "https://www.chess.com"]

[Event "Titled Tuesday Blitz March 15 Late 2022"]
[White "Rastbod, Ali"]
[Black "Meduri, Aakaash"]
[WhiteFideId "12567477"]
[BlackFideId "2032252"]
[WhiteElo "2200"]
[BlackElo "2096"]
[Result "1-0"]
[Round "04"]
[TimeControl "180+1"]
[Date "2022.03.16"]
[WhiteClock "0:00:11"]
[BlackClock "0:00:04"]

1. c4 {[%clk 0:02:53]}  f5 {[%clk 0:02:56]} 2. Nc3 {[%clk 0:02:53]}  Nf6 {[%clk 0:02:55]} 3. g3 {[%clk 0:02:53]}  e5 {[%clk 0:02:52]} 4. d4 {[%clk 0:02:53]}  e4 {[%clk 0:02:47]} 5. f3 {[%clk 0:02:52]}  Bb4 {[%clk 0:02:44]} 6. Qb3 {[%clk 0:02:50]}  Nc6 {[%clk 0:02:43]} 7. Be3 {[%clk 0:02:41]}  a5 {[%clk 0:02:33]} 8. a3 {[%clk 0:02:36]}  a4 {[%clk 0:02:13]} 9. Qc2 {[%clk 0:02:35]}  Bxc3+ {[%clk 0:02:13]} 10. Qxc3 {[%clk 0:02:36]}  d5 {[%clk 0:02:13]} 11. Bg5 {[%clk 0:02:33]}  Be6 {[%clk 0:02:07]} 12. e3 {[%clk 0:02:30]}  O-O {[%clk 0:02:04]} 13. f4 {[%clk 0:01:36]}  Na5 {[%clk 0:01:49]} 14. cxd5 {[%clk 0:01:26]}  Bxd5 {[%clk 0:01:49]} 15. Nh3 {[%clk 0:01:21]}  h6 {[%clk 0:01:43]} 16. Bxf6 {[%clk 0:01:20]}  Rxf6 {[%clk 0:01:44]} 17. Qc2 {[%clk 0:01:09]}  Nb3 {[%clk 0:01:38]} 18. Rd1 {[%clk 0:01:08]}  Rc6 {[%clk 0:01:39]} 19. Qb1 {[%clk 0:01:08]}  Qe8 {[%clk 0:01:27]} 20. Nf2 {[%clk 0:00:59]}  Ra5 {[%clk 0:01:01]} 21. Be2 {[%clk 0:00:58]}  Bc4 {[%clk 0:00:56]} 22. Bxc4+ {[%clk 0:00:55]}  Rxc4 {[%clk 0:00:57]} 23. O-O {[%clk 0:00:56]}  Qc6 {[%clk 0:00:54]} 24. g4 {[%clk 0:00:53]}  g6 {[%clk 0:00:54]} 25. gxf5 {[%clk 0:00:45]}  Rxf5 {[%clk 0:00:53]} 26. Qxe4 {[%clk 0:00:40]}  Qb6 {[%clk 0:00:15]} 27. Nd3 {[%clk 0:00:31]}  Rc2 {[%clk 0:00:06]} 28. Nc5 {[%clk 0:00:15]}  Qxc5 {[%clk 0:00:03]} 29. dxc5 {[%clk 0:00:12]}  Nxc5 {[%clk 0:00:04]} 30. Qxc2 {[%clk 0:00:11]} 1-0


[Site "https://www.chess.com"]

[Event "Titled Tuesday Blitz March 15 Late 2022"]
[White "Riehle, Marco"]
[Black "Xu, Yi"]
[WhiteFideId "12904392"]
[BlackFideId "8605564"]
[WhiteElo "2462"]
[BlackElo "2471"]
[Result "1/2-1/2"]
[Round "04"]
[TimeControl "180+1"]
[Date "2022.03.15"]
[WhiteClock "0:00:04"]
[BlackClock "0:00:05"]

1. e4 {[%clk 0:03:00]}  c5 {[%clk 0:02:59]} 2. a3 {[%clk 0:02:59]}  e6 {[%clk 0:02:52]} 3. b4 {[%clk 0:02:59]}  b6 {[%clk 0:02:44]} 4. Bb2 {[%clk 0:02:58]}  Bb7 {[%clk 0:02:42]} 5. d3 {[%clk 0:02:56]}  Nf6 {[%clk 0:02:42]} 6. Nf3 {[%clk 0:02:50]}  cxb4 {[%clk 0:02:42]} 7. Be2 {[%clk 0:02:50]}  bxa3 {[%clk 0:02:42]} 8. Nxa3 {[%clk 0:02:49]}  Bb4+ {[%clk 0:02:39]} 9. c3 {[%clk 0:02:48]}  Be7 {[%clk 0:02:39]} 10. O-O {[%clk 0:02:47]}  d6 {[%clk 0:02:39]} 11. c4 {[%clk 0:02:43]}  e5 {[%clk 0:02:38]} 12. Ng5 {[%clk 0:02:35]}  h6 {[%clk 0:02:34]} 13. Nh3 {[%clk 0:02:34]}  g5 {[%clk 0:02:24]} 14. Nb5 {[%clk 0:02:27]}  a6 {[%clk 0:02:22]} 15. Nc3 {[%clk 0:02:26]}  Nc6 {[%clk 0:02:20]} 16. Nd5 {[%clk 0:02:22]}  Nxd5 {[%clk 0:02:16]} 17. exd5 {[%clk 0:02:20]}  Nd4 {[%clk 0:02:10]} 18. Bxd4 {[%clk 0:02:18]}  exd4 {[%clk 0:02:11]} 19. f4 {[%clk 0:02:19]}  Bc8 {[%clk 0:02:08]} 20. Bg4 {[%clk 0:02:12]}  Bxg4 {[%clk 0:02:08]} 21. Qxg4 {[%clk 0:02:13]}  Qd7 {[%clk 0:02:08]} 22. Qxd7+ {[%clk 0:02:07]}  Kxd7 {[%clk 0:02:07]} 23. fxg5 {[%clk 0:02:08]}  hxg5 {[%clk 0:01:53]} 24. Rxf7 {[%clk 0:02:07]}  Ke8 {[%clk 0:01:32]} 25. Rg7 {[%clk 0:01:58]}  Bf6 {[%clk 0:01:03]} 26. Re1+ {[%clk 0:01:52]}  Kf8 {[%clk 0:01:01]} 27. Rb7 {[%clk 0:01:40]}  g4 {[%clk 0:00:46]} 28. Nf4 {[%clk 0:01:38]}  Rh6 {[%clk 0:00:47]} 29. Rxb6 {[%clk 0:01:30]}  a5 {[%clk 0:00:44]} 30. Rxd6 {[%clk 0:01:29]}  a4 {[%clk 0:00:42]} 31. Ne6+ {[%clk 0:01:28]}  Kf7 {[%clk 0:00:40]} 32. Rd7+ {[%clk 0:01:23]}  Kg6 {[%clk 0:00:38]} 33. c5 {[%clk 0:01:05]}  a3 {[%clk 0:00:38]} 34. c6 {[%clk 0:01:04]}  a2 {[%clk 0:00:38]} 35. Ra1 {[%clk 0:01:01]}  Rhh8 {[%clk 0:00:39]} 36. c7 {[%clk 0:01:01]}  Kf5 {[%clk 0:00:37]} 37. Nc5 {[%clk 0:00:54]}  Be5 {[%clk 0:00:35]} 38. g3 {[%clk 0:00:47]}  Bxc7 {[%clk 0:00:28]} 39. Rxc7 {[%clk 0:00:41]}  Rhb8 {[%clk 0:00:28]} 40. Nb7 {[%clk 0:00:41]}  Ra3 {[%clk 0:00:22]} 41. d6 {[%clk 0:00:38]}  Rb3 {[%clk 0:00:18]} 42. Rxa2 {[%clk 0:00:38]}  R3xb7 {[%clk 0:00:17]} 43. Rf2+ {[%clk 0:00:28]}  Ke5 {[%clk 0:00:15]} 44. Rc5+ {[%clk 0:00:26]}  Kxd6 {[%clk 0:00:13]} 45. Rg5 {[%clk 0:00:26]}  Rb3 {[%clk 0:00:12]} 46. Rxg4 {[%clk 0:00:21]}  Rxd3 {[%clk 0:00:12]} 47. Kg2 {[%clk 0:00:21]}  Kd5 {[%clk 0:00:11]} 48. h4 {[%clk 0:00:21]}  Rdb3 {[%clk 0:00:08]} 49. Rf5+ {[%clk 0:00:19]}  Kc4 {[%clk 0:00:08]} 50. h5 {[%clk 0:00:18]}  Rb2+ {[%clk 0:00:06]} 51. Kh3 {[%clk 0:00:18]}  Rb1 {[%clk 0:00:06]} 52. Rh4 {[%clk 0:00:15]}  Rh1+ {[%clk 0:00:06]} 53. Kg4 {[%clk 0:00:14]}  Rg8+ {[%clk 0:00:06]} 54. Rg5 {[%clk 0:00:08]}  Rxg5+ {[%clk 0:00:05]} 55. Kxg5 {[%clk 0:00:07]}  Rxh4 {[%clk 0:00:05]} 56. gxh4 {[%clk 0:00:08]}  d3 {[%clk 0:00:05]} 57. h6 {[%clk 0:00:09]}  d2 {[%clk 0:00:06]} 58. h7 {[%clk 0:00:10]}  d1=Q {[%clk 0:00:06]} 59. h8=Q {[%clk 0:00:11]}  Qd5+ {[%clk 0:00:05]} 60. Kf4 {[%clk 0:00:09]}  Qf7+ {[%clk 0:00:05]} 61. Kg4 {[%clk 0:00:09]}  Qg6+ {[%clk 0:00:05]} 62. Kf4 {[%clk 0:00:08]}  Qf7+ {[%clk 0:00:06]} 63. Kg5 {[%clk 0:00:09]}  Qd5+ {[%clk 0:00:06]} 64. Kg6 {[%clk 0:00:08]}  Qe4+ {[%clk 0:00:06]} 65. Kf7 {[%clk 0:00:08]}  Qb7+ {[%clk 0:00:06]} 66. Kg8 {[%clk 0:00:05]}  Qc8+ {[%clk 0:00:05]} 67. Kh7 {[%clk 0:00:03]}  Qf5+ {[%clk 0:00:05]} 68. Kg8 {[%clk 0:00:02]}  Qc8+ {[%clk 0:00:05]} 69. Kh7 {[%clk 0:00:03]}  Qf5+ {[%clk 0:00:05]} 70. Kg8 {[%clk 0:00:04]}  Qc8+ {[%clk 0:00:05]} 1/2-1/2


[Site "https://www.chess.com"]

[Event "Titled Tuesday Blitz March 15 Late 2022"]
[White "Romero Ruscalleda, Josep"]
[Black "Roberson, Peter T"]
[WhiteFideId "2231859"]
[BlackFideId "412384"]
[WhiteElo "2334"]
[BlackElo "2346"]
[Result "0-1"]
[Round "04"]
[TimeControl "180+1"]
[Date "2022.03.16"]
[WhiteClock "0:00:05"]
[BlackClock "0:00:37"]

1. e4 {[%clk 0:03:00]}  e5 {[%clk 0:02:59]} 2. Nf3 {[%clk 0:03:00]}  Nc6 {[%clk 0:02:59]} 3. Bc4 {[%clk 0:03:00]}  Bc5 {[%clk 0:02:59]} 4. c3 {[%clk 0:03:00]}  Nf6 {[%clk 0:02:59]} 5. b4 {[%clk 0:02:59]}  Be7 {[%clk 0:02:50]} 6. d3 {[%clk 0:02:58]}  O-O {[%clk 0:02:48]} 7. Bb3 {[%clk 0:02:54]}  d5 {[%clk 0:02:40]} 8. Qe2 {[%clk 0:02:49]}  Re8 {[%clk 0:02:30]} 9. O-O {[%clk 0:02:48]}  h6 {[%clk 0:02:28]} 10. Rd1 {[%clk 0:02:31]}  Be6 {[%clk 0:02:17]} 11. Nbd2 {[%clk 0:02:24]}  Bf8 {[%clk 0:02:09]} 12. b5 {[%clk 0:02:11]}  Na5 {[%clk 0:02:08]} 13. Bc2 {[%clk 0:02:12]}  Qd6 {[%clk 0:01:45]} 14. a4 {[%clk 0:02:09]}  Rad8 {[%clk 0:01:42]} 15. Ba3 {[%clk 0:02:04]}  Qb6 {[%clk 0:01:42]} 16. Bxf8 {[%clk 0:02:01]}  Kxf8 {[%clk 0:01:43]} 17. Nxe5 {[%clk 0:01:55]}  Qc5 {[%clk 0:01:25]} 18. c4 {[%clk 0:01:34]}  dxe4 {[%clk 0:01:20]} 19. d4 {[%clk 0:01:02]}  Rxd4 {[%clk 0:01:19]} 20. Nxe4 {[%clk 0:00:38]}  Qxe5 {[%clk 0:01:12]} 21. Rxd4 {[%clk 0:00:36]}  Qxd4 {[%clk 0:01:12]} 22. Rd1 {[%clk 0:00:36]}  Qe5 {[%clk 0:01:08]} 23. f4 {[%clk 0:00:26]}  Qh5 {[%clk 0:00:54]} 24. Qd2 {[%clk 0:00:16]}  Nxe4 {[%clk 0:00:53]} 25. Bxe4 {[%clk 0:00:15]}  Nb3 {[%clk 0:00:52]} 26. Qb4+ {[%clk 0:00:15]}  Qc5+ {[%clk 0:00:52]} 27. Qxc5+ {[%clk 0:00:14]}  Nxc5 {[%clk 0:00:53]} 28. Bf3 {[%clk 0:00:14]}  b6 {[%clk 0:00:46]} 29. h3 {[%clk 0:00:13]}  Bxc4 {[%clk 0:00:45]} 30. Bc6 {[%clk 0:00:10]}  Rc8 {[%clk 0:00:41]} 31. Rd4 {[%clk 0:00:08]}  Bb3 {[%clk 0:00:40]} 32. a5 {[%clk 0:00:06]}  bxa5 {[%clk 0:00:39]} 33. Rd2 {[%clk 0:00:06]}  a4 {[%clk 0:00:39]} 34. Kf2 {[%clk 0:00:05]}  a3 {[%clk 0:00:37]} 0-1


[Site "https://www.chess.com"]

[Event "Titled Tuesday Blitz March 15 Late 2022"]
[White "Rozman, Levy"]
[Black "Yoo, Christopher Woojin"]
[WhiteFideId "2039877"]
[BlackFideId "30909694"]
[WhiteElo "2376"]
[BlackElo "2105"]
[Result "0-1"]
[Round "04"]
[TimeControl "180+1"]
[Date "2022.03.15"]
[WhiteClock "0:00:02"]
[BlackClock "0:00:04"]

1. d4 {[%clk 0:02:59]}  Nf6 {[%clk 0:02:54]} 2. Bg5 {[%clk 0:02:59]}  Ne4 {[%clk 0:02:52]} 3. h4 {[%clk 0:02:59]}  h6 {[%clk 0:02:42]} 4. Bf4 {[%clk 0:02:58]}  d5 {[%clk 0:02:42]} 5. e3 {[%clk 0:02:57]}  Bf5 {[%clk 0:02:41]} 6. Bd3 {[%clk 0:02:56]}  e6 {[%clk 0:02:41]} 7. g4 {[%clk 0:02:53]}  Bh7 {[%clk 0:02:35]} 8. f3 {[%clk 0:02:47]}  Nf6 {[%clk 0:02:32]} 9. Bxh7 {[%clk 0:02:41]}  Rxh7 {[%clk 0:02:31]} 10. Qd3 {[%clk 0:02:39]}  c5 {[%clk 0:02:14]} 11. Ne2 {[%clk 0:02:15]}  Nc6 {[%clk 0:02:12]} 12. c3 {[%clk 0:02:02]}  Rh8 {[%clk 0:02:00]} 13. Nd2 {[%clk 0:01:59]}  Bd6 {[%clk 0:01:49]} 14. O-O-O {[%clk 0:01:53]}  cxd4 {[%clk 0:01:26]} 15. exd4 {[%clk 0:01:43]}  Bxf4 {[%clk 0:01:25]} 16. Nxf4 {[%clk 0:01:43]}  Qc7 {[%clk 0:01:25]} 17. Qe3 {[%clk 0:01:39]}  O-O-O {[%clk 0:00:51]} 18. g5 {[%clk 0:01:34]}  hxg5 {[%clk 0:00:52]} 19. hxg5 {[%clk 0:01:35]}  Nd7 {[%clk 0:00:52]} 20. g6 {[%clk 0:01:26]}  Rxh1 {[%clk 0:00:52]} 21. Rxh1 {[%clk 0:01:27]}  Nf8 {[%clk 0:00:50]} 22. gxf7 {[%clk 0:00:47]}  Qxf7 {[%clk 0:00:51]} 23. Re1 {[%clk 0:00:44]}  Qf5 {[%clk 0:00:49]} 24. Nb3 {[%clk 0:00:35]}  b6 {[%clk 0:00:47]} 25. Rg1 {[%clk 0:00:26]}  g5 {[%clk 0:00:43]} 26. Nd3 {[%clk 0:00:24]}  Nh7 {[%clk 0:00:43]} 27. Re1 {[%clk 0:00:23]}  Nf8 {[%clk 0:00:38]} 28. a4 {[%clk 0:00:22]}  Rd7 {[%clk 0:00:33]} 29. a5 {[%clk 0:00:22]}  Rf7 {[%clk 0:00:34]} 30. axb6 {[%clk 0:00:20]}  axb6 {[%clk 0:00:35]} 31. Nd2 {[%clk 0:00:19]}  Rf6 {[%clk 0:00:26]} 32. Rg1 {[%clk 0:00:18]}  Rg6 {[%clk 0:00:24]} 33. b4 {[%clk 0:00:15]}  Nd7 {[%clk 0:00:23]} 34. Rh1 {[%clk 0:00:09]}  Rg8 {[%clk 0:00:21]} 35. Nb3 {[%clk 0:00:07]}  g4 {[%clk 0:00:15]} 36. Rf1 {[%clk 0:00:04]}  g3 {[%clk 0:00:14]} 37. Rg1 {[%clk 0:00:03]}  e5 {[%clk 0:00:11]} 38. dxe5 {[%clk 0:00:03]}  Ncxe5 {[%clk 0:00:10]} 39. Nxe5 {[%clk 0:00:03]}  Qxe5 {[%clk 0:00:10]} 40. Qd3 {[%clk 0:00:02]}  g2 {[%clk 0:00:08]} 41. Nd2 {[%clk 0:00:02]}  Qh2 {[%clk 0:00:06]} 42. Qd4 {[%clk 0:00:03]}  Re8 {[%clk 0:00:03]} 43. Qf2 {[%clk 0:00:01]}  Re2 {[%clk 0:00:03]} 44. Qxe2 {[%clk 0:00:01]}  Qxg1+ {[%clk 0:00:03]} 45. Kc2 {[%clk 0:00:02]}  Qh2 {[%clk 0:00:04]} 46. Qe8+ {[%clk 0:00:02]}  Kc7 {[%clk 0:00:04]} 47. Nb3 {[%clk 0:00:02]}  g1=Q+ {[%clk 0:00:04]} 48. Nd2 {[%clk 0:00:02]}  Qgf2 {[%clk 0:00:04]} 0-1


[Site "https://www.chess.com"]